Cogmind - Beta 12 @@@ ROGUE MODE // 2023.11.28 @ 19:31:39 Player: zapruda Result: Destroyed by G-47 Trooper with Particle Gun Performance ------------- Evolutions (2) 1000 Regions Visited (7) 1400 Robots Destroyed (87) 435 Value Destroyed (1845) 1845 Prototype IDs (27) 540 Alien Tech Used (0) 0 Bonus (242) 242 TOTAL SCORE: 5462 Bonus ------- High Alert Combat Kills 63 Aligned with FarCom 300 Friendly Fire -121 Cogmind --------- Core Integrity 0/550 Matter 190/300 Energy 95/100 System Corruption 0% Temperature Cool (9) Movement Core (250) Ox4 Location -8/Materials Parts ------- > --- POWER (1) -------- (None) > --- PROPULSION (2) --- (None) > --- UTILITY (6) ------ Medium Storage Unit Terrain Scan Processor Hacking Suite > --- WEAPON (2) ------- Heavy Hammer > --- INVENTORY (10) --- Light Angular Momentum Engine Cooling System Improved Signal Interpreter Improved Targeting Computer ECM Suite Hacking Suite Datajack Peak State ------------ > --- POWER ------------ Heavy Ion Engine > --- PROPULSION ------- Armored Treads Armored Treads > --- UTILITY ---------- Medium Storage Unit Improved Terrain Scanner Improved Weapon Shielding Hacking Suite Hacking Suite Supersonic Drone Bay > --- WEAPON ----------- Beamcaster Mini Grenade Launcher > --- INVENTORY -------- Light Angular Momentum Engine Improved Signal Interpreter Terrain Scan Processor ECM Suite Improved Weapon Shielding Shield Generator Hacking Suite Datajack [Rating: 39] Favorites ----------- Power Ion Engine Engine Ion Engine Propulsion Armored Treads Treads Armored Treads Leg Aluminum Leg Flight Unit Flight Unit Utility Hacking Suite Device Structural Scanner Storage Medium Storage Unit Processor Transport Network Coupler Hackware Hacking Suite Protection Improved Weapon Shielding Weapon Beamcaster Energy Gun Beamcaster Energy Cannon Firepult Ballistic Gun Heavy Assault Rifle Ballistic Cannon Flak Cannon Launcher Mini Grenade Launcher Special Weapon Plasma Cutter Impact Weapon Heavy Hammer Special Melee Weapon Datajack Build | -11 -10 -10 -9 -9 -9 -8 -8 ------- Run | Jun Mat Min Mat Min Exi Min Mat Slots Evolved 4 | . . . 2 . . . 2 Power . | . . . . . . . . Propulsion . | . . . . . . . . Utility 4 | . . . 2 . . . 2 Weapon . | . . . . . . . . Parts Attached 71 | . 11 17 25 . 7 2 9 Power 11 | . 2 2 6 . . . 1 Engine 11 | . 2 2 6 . . . 1 Core . | . . . . . . . . Reactor . | . . . . . . . . Propulsion 11 | . 3 4 3 . . . 1 Treads 9 | . 3 2 3 . . . 1 Leg . | . . . . . . . . Wheel . | . . . . . . . . Hover . | . . . . . . . . Flight 2 | . . 2 . . . . . Utility 29 | . 4 7 9 . 2 2 5 Device 11 | . . 3 3 . 1 1 3 Storage 4 | . 3 1 . . . . . Processor 4 | . 1 1 1 . . . 1 Hackware 2 | . . . 2 . . . . Protection 8 | . . 2 3 . 1 1 1 Artifact . | . . . . . . . . Weapon 20 | . 2 4 7 . 5 . 2 Energy Gun 8 | . 2 3 2 . 1 . . Energy Cannon 1 | . . . . . 1 . . Ballistic Gun 2 | . . . 2 . . . . Ballistic Cannon 1 | . . 1 . . . . . Launcher 3 | . . . 2 . 1 . . Special Weapon 2 | . . . 1 . 1 . . Impact Weapon 1 | . . . . . . . 1 Slashing Weapon . | . . . . . . . . Piercing Weapon . | . . . . . . . . Special Melee Weapon 2 | . . . . . 1 . 1 Unidentified Prototypes 4 | . . . 1 . 3 . . Parts Lost 16 | . 2 . 3 . . . 11 Power 4 | . . . 2 . . . 2 Propulsion 4 | . 1 . . . . . 3 Utility 5 | . . . . . . . 5 Weapon 3 | . 1 . 1 . . . 1 Highest Loss Streak 7 | . 1 . 2 . . . 7 To Critical Strikes . | . . . . . . . . Average Slot Usage (%) 97 | . 98 97 98 100 97 100 93 Engine 11 | . 14 13 10 11 11 11 8 Treads 23 | . 27 27 21 22 22 22 16 Device 3 | . . 6 3 . . 1 9 Storage 12 | . 14 13 11 11 11 11 9 Processor 6 | . 12 5 3 . . . 8 Hackware 10 | . . . 17 22 22 22 16 Protection 5 | . . 2 7 11 9 9 8 Energy Gun 17 | . 27 24 11 11 10 11 6 Ballistic Gun 2 | . . . 5 11 6 . . Launcher 1 | . . . 1 . 4 11 4 Special Weapon 1 | . . . 2 . . . . Naked Turns . | . . . . . . . . Heaviest Build 29 | 13 29 29 28 28 28 26 29 Greatest Support 40 | 20 40 40 40 40 40 40 40 Greatest Overweight (x) 7 | . . 2 . . . . 7 Average Overweight (x) . | . . . . . . . . Largest Inventory Capacity 25 | . 25 15 10 10 10 10 10 Average Capacity 11 | . 14 9 10 10 10 10 10 Most Carried 15 | . 15 15 10 10 10 10 10 Average Carried 9 | . 11 9 9 10 9 10 8 Final Capacity 15 | 8 15 10 10 10 10 10 10 Final Carried 15 | 6 15 10 10 10 10 10 7 Class Distribution -------------------- 54% | Mutant 43% | Hacker-Mutant Dominant Class ---------------- Mutant | -10/Materials Mutant | -10/Mines Hacker-Mutant | -9/Materials Hacker-Mutant | -9/Mines Hacker-Mutant | -9/Exiles Hacker-Mutant | -8/Mines Hacker-Mutant | -8/Materials Resources | -11 -10 -10 -9 -9 -9 -8 -8 ----------- Run | Jun Mat Min Mat Min Exi Min Mat Matter Collected 1219 | 163 147 322 463 8 . 2 114 Remotely . | . . . . . . . . Salvage Created 3059 | . 861 24 1767 . . 38 369 Parts 176 | . 54 3 97 . . 9 13 Haulers Intercepted 8 | . 2 . 5 . . . 1 Recyclers Shooed 7 | . 4 . 3 . . . . Parts Field Recycled . | . . . . . . . . Retrieved Matter . | . . . . . . . . Parts Self-Destructed . | . . . . . . . . Prevented . | . . . . . . . . Kills | -11 -10 -10 -9 -9 -9 -8 -8 ------- Run | Jun Mat Min Mat Min Exi Min Mat Combat Hostiles Destroyed 53 | . 14 . 23 . . 8 8 Melee 3 | . . . . . . . 3 Guns 43 | . 14 . 22 . . 4 3 Cannons 1 | . . . 1 . . . . AOE 5 | . . . . . . 4 1 Classes Destroyed 12 | . 7 1 3 . . . 1 Worker 6 | . 3 . 3 . . . . Builder 2 | . . 1 1 . . . . Tunneler 2 | . . . 2 . . . . Hauler 8 | . 2 . 5 . . . 1 Recycler 5 | . 2 . 3 . . . . Operator 4 | . 1 . 2 . . . 1 Watcher 6 | . 3 . 3 . . . . Swarmer 20 | . 6 . 6 . . 8 . Grunt 21 | . 8 . 7 . . . 6 Duelist 2 | . . . 2 . . . . Sentry 9 | . . . 8 . . . 1 Hunter 1 | . . . . . . . 1 Thug 1 | . . . 1 . . . . Best Kill Streak 7 | . 5 1 7 . . 4 3 Combat Bots Only 4 | . 4 . 4 . . 4 3 Max Kills in Single Turn 2 | . 2 1 1 . . 2 1 Gunslinging 1 | . 1 . . . . . . Exploded 2 | . . . . . . 2 1 Melee 1 | . . . . . . . 1 Uniques/NPCs Destroyed . | . . . . . . . . Combat | -11 -10 -10 -9 -9 -9 -8 -8 -------- Run | Jun Mat Min Mat Min Exi Min Mat Damage Taken 3606 | . 627 . 1285 . . 107 1587 Core 833 | . 119 . 149 . . 15 550 Absorbed by Shields 127 | . . . . . . . 127 Redirected to Shielding 223 | . . . 103 . . 6 114 Regen/Repaired (Parts) 454 | . . . 454 . . . . Core Remaining (%) 70 | 100 . 52 . . . 59 . Volleys Fired 231 | . 73 8 119 . . 8 23 Largest 2 | . 2 2 2 . . 2 2 Hottest 115 | . 90 84 115 . . 105 105 Shots Fired 367 | . 139 10 178 . 1 11 28 Gun 343 | . 139 8 164 . 1 8 23 Cannon 2 | . . 2 . . . . . Launcher 10 | . . . 2 . . 3 5 Special 12 | . . . 12 . . . . Kinetic 65 | . . 2 63 . . . . Thermal 262 | . 115 5 110 . 1 8 23 Explosive 10 | . . . 2 . . 3 5 Electromagnetic 30 | . 24 3 3 . . . . Robot Hit Streak 11 | . 8 10 11 . . 3 9 Robot Miss Streak 7 | . 7 2 6 . . 3 4 Penetration Max . | . . . . . . . . Secondary Targets 4 | . 3 . 1 . . . . Max Gunslinging Chain 1 | . 1 . 1 . . . . Shots Hit Robots 233 | . 81 5 107 . . 4 36 Core Hits 113 | . 39 2 52 . . 8 12 Critical Kills 2 | . . . 1 . . . 1 Critical Parts Destroyed . | . . . . . . . . Critical Strikes 13 | . 6 . 3 . . 1 3 Burn 9 | . 5 . 1 . . 1 2 Destroy 1 | . . . 1 . . . . Corrupt 1 | . 1 . . . . . . Smash 1 | . . . . . . . 1 Sever 1 | . . . 1 . . . . Melee Attacks 27 | . . . . . . . 27 Impact 24 | . . . . . . . 24 Slashing . | . . . . . . . . Piercing . | . . . . . . . . Sneak Attacks 3 | . . . . . . . 3 Combat Hostiles . | . . . . . . . . Follow-up Attacks . | . . . . . . . . Damage Inflicted 4985 | . 1089 109 2165 . . 426 1196 Guns 3451 | . 1034 57 2004 . . 83 273 Cannons 52 | . . 52 . . . . . Explosions 811 | . 35 . 64 . . 343 369 Melee 554 | . . . . . . . 554 Ramming 20 | . 20 . . . . . . Kinetic 533 | . . 52 481 . . . . Thermal 2845 | . 881 42 1566 . . 83 273 Explosive 776 | . . . 64 . . 343 369 Electromagnetic 257 | . 188 15 54 . . . . Impact 554 | . . . . . . . 554 Slashing . | . . . . . . . . Piercing . | . . . . . . . . Highest Corruption 3 | . . . 3 3 3 3 . Average Corruption 2 | . . . 2 3 3 3 . Corruption Purged . | . . . . . . . . Corruption Blocked . | . . . . . . . . Effects 15 | . . . 3 3 8 1 . Message Errors 2 | . . . . . 2 . . Matter Fused 4 | . . . 1 . 2 1 . Heat Flow Errors 1 | . . . . 1 . . . Energy Discharges 4 | . . . . 2 2 . . Data Loss (minor) 2 | . . . 1 . 1 . . Misfires 2 | . . . 1 . 1 . . Overload Shots . | . . . . . . . . Overflow Damage 27 | . . . 1 . . . 26 Projectiles 1 | . . . 1 . . . . Explosions 23 | . . . . . . . 23 Melee 3 | . . . . . . . 3 Knockbacks 2 | . 1 . . . . . 1 Impact 2 | . 1 . . . . . 1 Kinetic . | . . . . . . . . Secondary . | . . . . . . . . Self-Inflicted Damage 44 | . . . 41 . . 3 . Shots 2 | . . . 1 . . 1 . Rammed 4 | . 4 . . . . . . Targets Rammed 4 | . 4 . . . . . . Kicked . | . . . . . . . . Crushed . | . . . . . . . . Highest Temperature 342 | . 264 102 342 267 32 159 330 Average Temperature 94 | . 86 37 105 256 19 68 106 Received Heat Transfer 1582 | . 243 . 414 . . . 925 Effects 4 | . . . 4 . . . . Energy Bleed 2 | . . . 2 . . . . Interference 2 | . . . 2 . . . . Siege Activations . | . . . . . . . . Robots Corrupted . | . . . . . . . . Combat Hostiles . | . . . . . . . . Parts Fried 2 | . 1 . . . . . 1 Impact Corruptions 1 | . . . . . . . 1 Robots Melted . | . . . . . . . . Combat Hostiles . | . . . . . . . . Parts Melted 17 | . 9 . 5 . . . 3 Heat Transferred 6636 | . 2714 74 2997 . . 222 629 Parts Sabotaged . | . . . . . . . . Parts Stolen . | . . . . . . . . Parts Stripped . | . . . . . . . . Power Chain Reactions 1 | . 1 . . . . . . Missiles Intercepted . | . . . . . . . . Alert | -11 -10 -10 -9 -9 -9 -8 -8 ------- Run | Jun Mat Min Mat Min Exi Min Mat Peak Influence 557 | . 202 27 557 217 . 241 283 Initial 217 | . . 22 . 217 . . 93 Average 145 | . 81 5 241 217 . 161 190 Maximum Alert Level 2 | . 1 . 2 1 . 1 1 Low Security (%) 68 | . 94 100 45 . . 60 51 Level 1 20 | . 5 . 30 100 . 40 48 Level 2 10 | . . . 24 . . . . Level 3 . | . . . . . . . . Level 4 . | . . . . . . . . Level 5 . | . . . . . . . . High Security . | . . . . . . . . Max Security . | . . . . . . . . Squads Dispatched 9 | . 3 . 3 . . . 3 Investigation 3 | . 2 . 1 . . . . Extermination . | . . . . . . . . Reinforcement 5 | . 1 . 2 . . . 2 Assault . | . . . . . . . . Garrison 1 | . . . . . . . 1 Intercept . | . . . . . . . . Searches Triggered . | . . . . . . . . Construction Impeded . | . . . . . . . . Haulers Reinforced . | . . . . . . . . Active Scanning Responses . | . . . . . . . . Cargo Convoy Interrupts . | . . . . . . . . Stealth | -11 -10 -10 -9 -9 -9 -8 -8 --------- Run | Jun Mat Min Mat Min Exi Min Mat Distress Signals 6 | . 1 . 3 . . . 2 Communications Jammed . | . . . . . . . . Distress Signals . | . . . . . . . . Times Spotted 92 | . 24 . 42 . . 7 19 Peak Tracking Total 7 | . 5 . 7 . . 4 7 Tactical Retreats 6 | . 2 . 3 . . . 1 Traps | -11 -10 -10 -9 -9 -9 -8 -8 ------- Run | Jun Mat Min Mat Min Exi Min Mat Traps Triggered 5 | . 3 . 2 . . . . Indirectly . | . . . . . . . . Trap Hack Attempts . | . . . . . . . . Triggered . | . . . . . . . . Disarmed . | . . . . . . . . Reprogrammed . | . . . . . . . . Reused . | . . . . . . . . Traps Extracted . | . . . . . . . . Installed . | . . . . . . . . Triggered . | . . . . . . . . Machines | -11 -10 -10 -9 -9 -9 -8 -8 ---------- Run | Jun Mat Min Mat Min Exi Min Mat Machines Disabled 5 | . . . 4 . . 1 . Max in Single Turn 1 | . . . 1 . . 1 . Machines Repaired . | . . . . . . . . Machines Sabotaged . | . . . . . . . . Overloaded Fab Kills . | . . . . . . . . Hacking | -11 -10 -10 -9 -9 -9 -8 -8 --------- Run | Jun Mat Min Mat Min Exi Min Mat Machines Accessed 16 | . 2 1 11 . 1 . 1 Terminals 8 | . . . 7 . . . 1 Fabricators . | . . . . . . . . Repair Stations 2 | . . . 2 . . . . Recycling Units 3 | . 2 . 1 . . . . Scanalyzers 1 | . . . 1 . . . . Garrison Access . | . . . . . . . . Total Hacks 46 | . 4 1 37 . 1 . 3 Successful 29 | . 2 1 23 . 1 . 2 Failed 16 | . 2 . 13 . . . 1 Catastrophic 4 | . . . 4 . . . . Database Lockouts 1 | . . . 1 . . . . Manual 21 | . . . 20 . 1 . . Terminals 26 | . . . 23 . . . 3 Fabricators . | . . . . . . . . Repair Stations 8 | . . . 8 . . . . Recycling Units 6 | . 4 . 2 . . . . Scanalyzers 4 | . . . 4 . . . . Garrison Access . | . . . . . . . . Terminal Hacks 14 | . . 1 10 . 1 . 2 Part Schematic 2 | . . . 2 . . . . Robot Analysis 1 | . . . 1 . . . . Prototype ID Bank 1 | . . . . . . . 1 Open Door 1 | . . 1 . . . . . Level Access Points 1 | . . . 1 . . . . Branch Access Points 1 | . . . 1 . . . . Emergency Access Points 1 | . . . 1 . . . . Terminal Index 1 | . . . 1 . . . . Repair Station Index 1 | . . . 1 . . . . Alert Level 2 | . . . 2 . . . . Transport Status 1 | . . . . . . . 1 EX-Prototype ID Bank 1 | . . . . . 1 . . Fabricator Hacks . | . . . . . . . . Repair Station Hacks 8 | . . . 8 . . . . Scan Component 4 | . . . 4 . . . . Repair 4 | . . . 4 . . . . Recycling Unit Hacks 3 | . 2 . 1 . . . . Retrieve Components 3 | . 2 . 1 . . . . Scanalyzer 4 | . . . 4 . . . . Insert Component 2 | . . . 2 . . . . Analyze 2 | . . . 2 . . . . Garrison Access Hacks . | . . . . . . . . Unauthorized Hacks . | . . . . . . . . Terminals . | . . . . . . . . Fabricators . | . . . . . . . . Repair Stations . | . . . . . . . . Recycling Units . | . . . . . . . . Scanalyzers . | . . . . . . . . Garrison Access . | . . . . . . . . Data Cores Recovered 1 | . . . 1 . . . . Used 1 | . . . 1 . . . . Hacking Detections 14 | . 2 . 11 . . . 1 Full Trace Events 1 | . . . 1 . . . . Feedback Events . | . . . . . . . . Feedback Blocked . | . . . . . . . . Robot Schematics Acquired . | . . . . . . . . Robots Built . | . . . . . . . . Authchips . | . . . . . . . . Time . | . . . . . . . . Total Robot Build Rating . | . . . . . . . . Part Schematics Acquired 4 | . . . 4 . . . . Parts Built . | . . . . . . . . Authchips . | . . . . . . . . Time . | . . . . . . . . Total Part Build Rating . | . . . . . . . . Parts Repaired 4 | . . . 4 . . . . Time 152 | . . . 152 . . . . Parts Recycled . | . . . . . . . . Recycled Matter . | . . . . . . . . Retrieved Matter . | . . . . . . . . Retrieved Components 24 | . 15 . 9 . . . . Parts Scanalyzed 2 | . . . 2 . . . . Part Schematics Acquired 2 | . . . 2 . . . . Parts Damaged . | . . . . . . . . Bothacking | -11 -10 -10 -9 -9 -9 -8 -8 ------------ Run | Jun Mat Min Mat Min Exi Min Mat Used RIF Installer . | . . . . . . . . Robots Hacked 1 | . . . . . . . 1 Non-combat 1 | . . . . . . . 1 Combat . | . . . . . . . . Robot Hacks Applied 2 | . . . . . . . 2 parse_system 1 | . . . . . . . 1 no_distress 1 | . . . . . . . 1 Relay Couplers Released . | . . . . . . . . Fabnet Peak Effective % . | . . . . . . . . Robots Rewired . | . . . . . . . . Allies Hacked . | . . . . . . . . Hacks Repelled . | . . . . . . . . Allies | -11 -10 -10 -9 -9 -9 -8 -8 -------- Run | Jun Mat Min Mat Min Exi Min Mat Total Allies 1 | . . . . 1 . . . Largest Group 1 | . . . . 1 1 . . Highest-Rated Group 31 | . . . . 31 31 . . Highest-Rated Ally 31 | . . . . 31 31 . . Total Orders 4 | . . . . . 2 1 1 EXPLORE 3 | . . . . . 1 1 1 RETURN 1 | . . . . . 1 . . Ally Attacks . | . . . . . . . . Total Damage . | . . . . . . . . Kills . | . . . . . . . . Allies Corrupted . | . . . . . . . . Allies Melted . | . . . . . . . . Intel | -11 -10 -10 -9 -9 -9 -8 -8 ------- Run | Jun Mat Min Mat Min Exi Min Mat Robot Analysis Total 1 | . . . 1 . . . . Derelict Logs Recovered 2 | . . 2 . . . . . Drone Launches 3 | . . . . . 1 1 1 Drone Recoveries 2 | . . . . . 1 1 . Exploration | -11 -10 -10 -9 -9 -9 -8 -8 ------------- Run | Jun Mat Min Mat Min Exi Min Mat Turns Passed 7203 | . 1590 1558 2965 155 445 85 405 Spaces Moved 3624 | 1 808 899 1411 88 239 30 148 Core 7 | . . 2 . . . . 5 Treads 3568 | . 803 854 1411 88 239 30 143 Legs 6 | 1 5 . . . . . . Wheels . | . . . . . . . . Hover . | . . . . . . . . Flight 43 | . . 43 . . . . . Fastest Speed 37 | 120 120 37 170 170 170 170 165 Average Speed 166 | 120 159 163 170 170 170 170 173 Slowest Speed 400 | 120 160 170 170 170 170 170 400 Overloaded Moves . | . . . . . . . . Propulsion Burnouts . | . . . . . . . . Robots Hopped . | . . . . . . . . Cave-ins Triggered . | . . . . . . . . Exploration Rate (%) 63 | 2 98 98 82 26 91 94 18 Regions Visited 7 Branch Regions 4 Pre-discovered Areas . | . . . . . . . . Known Exits Taken 4 | . . 1 1 . 1 1 . Unknown Exits Taken 3 | 1 1 . . 1 . . . Scrap Searched 3 | . . 1 . 2 . . . Spaces Dug . | . . . . . . . . Terrain Destroyed 89 | . 6 . 27 . . 34 22 Melee . | . . . . . . . . Projectile . | . . . . . . . . AOE 89 | . 6 . 27 . . 34 22 Terrain Rammed . | . . . . . . . . Walls Destroyed . | . . . . . . . . Machines Disabled . | . . . . . . . . Actions | -11 -10 -10 -9 -9 -9 -8 -8 --------- Run | Jun Mat Min Mat Min Exi Min Mat Total 4394 | . 967 986 1789 94 279 52 227 Wait 310 | . 42 14 199 7 22 13 13 Move 3617 | . 807 898 1410 87 238 29 148 Hop . | . . . . . . . . Pick Up 69 | . 20 21 19 . 4 . 5 Fast Attach 17 | . 2 5 6 . 4 . . Attach 26 | . 3 6 7 . 2 . 8 Detach 5 | . . 4 1 . . . . Swap 28 | . 6 6 12 . 1 2 1 Drop 60 | . 10 24 16 . 8 . 2 Fire 231 | . 73 8 119 . . 8 23 Melee 27 | . . . . . . . 27 Ram . | . . . . . . . . Kick . | . . . . . . . . Crush 4 | . 4 . . . . . . Escape Stasis . | . . . . . . . . Rewire . | . . . . . . . . Trap . | . . . . . . . . Miscellaneous . | . . . . . . . . Route ------- -11/Junkyard -10/Materials (discovered 5 exits: *Mat x3 / *Min x2) -10/Mines (discovered 2 exits: *Mat x2) -9/Materials (discovered 4 exits: *Mat x3 / *Min) -9/Mines (discovered 2 exits: *Mat / *Exi) -9/Exiles (discovered 2 exits: *Min x2) -8/Mines (discovered 2 exits: *Mat x2) -8/Materials History --------- Turn | Location | Event 1 | -11/Junkyard | Discovered new exit (range 0) 1 | -11/Junkyard | Entered Materials 130 | -10/Materials | Discovered new exit (range 6) 300 | -10/Materials | Build established: Mutant 330 | -10/Materials | Discovered new exit (range 12) 822 | -10/Materials | Discovered new exit (range 14) 1060 | -10/Materials | Discovered new exit (range 8) 1380 | -10/Materials | Discovered new exit (range 15) 1591 | -10/Materials | Entered Mines 1595 | -10/Mines | Met a Derelict bent on vengeance 1596 | -10/Mines | Met a Derelict who couldn't figure out how to use a Trap Extractor 2175 | -10/Mines | Found a hidden stash of uninstalled traps 2284 | -10/Mines | Discovered new exit (range 11) 2469 | -10/Mines | Discovered new exit (range 8) 2746 | -10/Mines | Identified exit to Materials 3149 | -10/Mines | Entered Materials 3149 | -9/Materials | Evolved 2 slots: Utility x2 3150 | -9/Materials | Identified exit to Mines 3527 | -9/Materials | Discovered new exit (range 7) 3565 | -9/Materials | Identified exit to Materials 3913 | -9/Materials | Central database locked down 4174 | -9/Materials | Build established: Hacker-Mutant 4485 | -9/Materials | Repaired Arm. Treads 4524 | -9/Materials | Repaired Arm. Treads 4563 | -9/Materials | Repaired Imp. Weapon Shielding 5937 | -9/Materials | Repaired Arm. Treads 6114 | -9/Materials | Entered Mines 6117 | -9/Mines | Received a Mining Laser from a helpful Derelict 6220 | -9/Mines | Discovered exit to Materials (range 8) 6254 | -9/Mines | Deemed a non-threat by the Exiles lab entrance 6256 | -9/Mines | Discovered new exit (range 5) 6269 | -9/Mines | Entered Exiles 6269 | -9/Exiles | Accompanied by 1 ally 6270 | -9/Exiles | Identified exit to Mines 6310 | -9/Exiles | Met 8R-AWN 6339 | -9/Exiles | Met EX-HEX 6394 | -9/Exiles | Met EX-BIN 6434 | -9/Exiles | Aligned with FarCom system 6436 | -9/Exiles | Given EX-Vault access code 6475 | -9/Exiles | Opened EX-Vault 6484 | -9/Exiles | Found Prototype Device 6484 | -9/Exiles | Identified Supersonic Drone Bay 6490 | -9/Exiles | Discovered exit to Mines (range 54) 6514 | -9/Exiles | Found Prototype Special Weapon 6514 | -9/Exiles | Identified Field Lobotomy Kit 6519 | -9/Exiles | Found Prototype Energy Cannon 6520 | -9/Exiles | Identified Firepult 6588 | -9/Exiles | Warned to stay clear of 0b10 Research branches 6637 | -9/Exiles | Met EX-DEC 6714 | -9/Exiles | Left Exiles lab with Supersonic Drone Bay 6714 | -9/Exiles | Entered Mines 6760 | -8/Mines | Discovered exit to Materials (range 7) 6785 | -8/Mines | Discovered exit to Materials (range 51) 6799 | -8/Mines | Entered Materials 6799 | -8/Materials | Evolved 2 slots: Utility x2 7159 | -8/Materials | Lost 3 parts (1n1u1w) 7165 | -8/Materials | Garrison activated, responded to threat 7170 | -8/Materials | Core integrity fell below 50% 7194 | -8/Materials | Core integrity fell below 20% 7204 | -8/Materials | Destroyed by G-47 Trooper with Particle Gun Last Messages --------------- 07128_ Hacking Suite destroyed. 07140_ G-47 Trooper destroyed. 07165_ Y-45 Defender calls for garrison reinforcements. 07165_ ALERT: Activating Garrison Access M001. 07166_ Lgt. Treads destroyed. 07167_ Critical hit (Burn: +26). 07176_ Hvy. Ion Engine destroyed. 07180_ Arm. Treads destroyed. 07180_ Critical hit (Burn: +37). 07189_ Shield Generator destroyed. 07189_ Critical hit (Burn: +37). 07190_ Y-45 Defender destroyed. 07194_ Critical hit (Burn: +37). 07194_ K-01 Serf collects debris. 07195_ Critical hit (Burn: +37). 07195_ Imp. Terrain Scanner destroyed. 07196_ Lgt. Deuterium Engine destroyed. 07197_ K-01 Serf collects debris. 07200_ Imp. Weapon Shielding destroyed. 07203_ Critical hit (Burn: +37). Map ----- +----------------------------------------------------+ | ?????????????????????????????????????????????????? | | ?????????????????????????????????????????????????? | | ?????????????????????????????????????????????????? | | ?????????????????????????????????????????????????? | | ?????????????????????????????????????????????????? | | ?????????????????????????????????????????????????# | | ??????????????????????????????????????????????#??? | | ????????????????????????????????????????????#????# | | ??????????????????????????????????????????????#??? | | ??????????????????????????????????????????????##?? | | ??????????????????????????????????#??????????#???? | | ??????????????????????????????????????#?##?#??#?## | | ???????????????????????????????#?????????###??##?? | | ????????????????????????????????????#????????##?## | | ???????????????????????????#?##??#????#???????#??# | | ?????????????????????###?#? ? ? ###???#?###??#? | | ???????????????????#?##?## ?? ? #?#?#?###??#### | | ?????????????????? ? ???? ""? """?#??####??###?## | | ????????????????? T ?? #? ?"??"?" ###???????##### | | ????????????????# #? """ """ #####?######### | | ??????????????? # #??"""??"" ############?## | | ??????????????? # ??# ""? """ # ##### | | ????????????????? ??# ? ???? # ##### | | ????????????????# """ #######+#+## ##### | | ?????????????##?# """ #g # ###?# | | ??????????????### """ o@ + ##?## | | ??????????????#?# # # ##### | | ?????????????#### ! ? # u* # + | | ??????????????######?## #g k # # | | ?????????????#?#?########%= ########### | | ????????????# ? ? ? ?#[g ###### #?#?####?# ] | | ????????????# ??? ? ?? # ##?### ##########+#### | | ?????????????? ?? # ###### ######?#/% / # | | ?????????????? ? # ######+###?####///! # | | ???????????????"???? ??+ # [*%=*####?#/%! # | | ????????????#???"?""""" # # [* """ ###### [[! # | | ????????????? "?? ??? # # % """ ###### [! # | | ?????????????????#?#?##?#% # """ #?#### [! # | | ????????????????? ?w ? # ###?##+###### | | ???????????????? ? ?? + / ##?### ?#??#? | | ????????????????? ? # ###### ?##?## | | ??????????????????? ?? # "T" ###### ?#?#?? | | ???????????????? ??? ? # """ ####?# ?#??#? | | ???????????????????? " " ##########??### ?#???# | | ?????????????????????? "G" ? ##?##??#??# ##???? | | ?????????????????????????? ? ??????#??### ##?#?# | | ?????????????????????????? ??? #?##????? ???#???? | | ??????????????????????????? ? ???#???????? #????? | | ???????????????????????????? ? ??#??????????????? | | ??????????????????????????????????#?"????????????? | +----------------------------------------------------+ Best States ------------- Heat Dissipation 31 Energy Generation 18 Energy Capacity 280 Matter Stores 300 Matter Capacity 300 Sight Range 16 Terrain Scan Range 16 Terrain Scan Density 85 Base Temperature (-) 100 Weapon Shielding 66 Evasion (%) 62 Recoil Reduction 2 Offensive Hacking 20 Trap Extractor Capacity 6 Item Schematics ----------------- Hacking Suite | -9/Materials | Scanalyzed Lgt. Angular Momentum Engine | -9/Materials | Scanalyzed Imp. Hover Unit | -9/Materials | Hacked Field Recycling Unit | -9/Materials | Hacked Robot Schematics ------------------ None Fabricated ------------ Nothing Alien Tech Used ----------------- None Achievements -------------- None Challenges ------------ None Game ------ Seed MassCommShotgun Manual? 0 Play Time 00:50:26 Cumulative 90.6 hours Start 2023.11.28 @ 18:42:03 End 2023.11.28 @ 19:31:39 Sessions 1 Manual Loads 0 Difficulty Rogue Special Mode None Game No. 136 Rogue 136 Adventurer 0 Explorer 0 Win Type - Total 0 Types 0/0/0/0/0/0/0/0/0 Lore% 30 Gallery% 54 Achievement% 36 Wizard Run 0 Options --------- ASCII 0 Keyboard 0 Movement Mouse Keybinds 0 Fullscreen 2 Font 18/SmallcapsGlow Map View 76x50 Tactical HUD 1 Map Filters NONE Filters NONE Steam 1 RUN: b6200c71-7e15-4eaa-be8c-797bd6b92316